[Event "Titled Tuesday Blitz March 07 Late 2023"]
[White "Carrasco Miranda, Andres"]
[Black "Kho, Darrell"]
[WhiteFideId "3405990"]
[BlackFideId "1019317"]
[WhiteElo "2183"]
[BlackElo "2171"]
[Result "1-0"]
[Round "03"]
[TimeControl "180+2"]
[Date "2023.03.07"]
[WhiteClock "0:01:34"]
[BlackClock "0:00:48"]

1. e4 {[%clk 0:02:59]}  e6 {[%clk 0:02:59]} 2. d3 {[%clk 0:02:59]}  d5 {[%clk 0:02:57]} 3. Nd2 {[%clk 0:02:59]}  Nc6 {[%clk 0:02:48]} 4. Ngf3 {[%clk 0:02:57]}  e5 {[%clk 0:02:45]} 5. exd5 {[%clk 0:02:51]}  Qxd5 {[%clk 0:02:44]} 6. g3 {[%clk 0:02:49]}  Bg4 {[%clk 0:02:31]} 7. Bg2 {[%clk 0:02:49]}  Qd7 {[%clk 0:02:21]} 8. h3 {[%clk 0:02:46]}  Be6 {[%clk 0:02:07]} 9. Qe2 {[%clk 0:02:41]}  f6 {[%clk 0:02:01]} 10. Ne4 {[%clk 0:02:19]}  O-O-O {[%clk 0:01:38]} 11. Be3 {[%clk 0:02:18]}  Nd4 {[%clk 0:01:31]} 12. Nxd4 {[%clk 0:02:09]}  exd4 {[%clk 0:01:31]} 13. Bf4 {[%clk 0:02:08]}  g5 {[%clk 0:01:25]} 14. Bd2 {[%clk 0:01:55]}  h6 {[%clk 0:01:21]} 15. g4 {[%clk 0:01:53]}  f5 {[%clk 0:01:09]} 16. gxf5 {[%clk 0:01:51]}  Bxf5 {[%clk 0:01:09]} 17. O-O-O {[%clk 0:01:43]}  Qa4 {[%clk 0:01:04]} 18. Kb1 {[%clk 0:01:40]}  Bc5 {[%clk 0:00:48]} 19. Nxc5 {[%clk 0:01:34]} 1-0


[Site "https://www.chess.com"]

[Event "Titled Tuesday Blitz March 07 Late 2023"]
[White "Sabar, Ethmane Daouda"]
[Black "Figorito, Nick"]
[WhiteFideId "19600097"]
[BlackFideId "30923689"]
[WhiteElo "1950"]
[BlackElo "2374"]
[Result "0-1"]
[Round "03"]
[TimeControl "180+2"]
[Date "2023.03.07"]
[WhiteClock "0:00:04"]
[BlackClock "0:00:29"]

1. e4 {[%clk 0:03:00]}  e6 {[%clk 0:03:00]} 2. d4 {[%clk 0:03:00]}  d5 {[%clk 0:03:01]} 3. Nc3 {[%clk 0:03:00]}  Bb4 {[%clk 0:03:00]} 4. exd5 {[%clk 0:03:00]}  exd5 {[%clk 0:02:59]} 5. Bd3 {[%clk 0:03:00]}  Nf6 {[%clk 0:03:00]} 6. Ne2 {[%clk 0:03:00]}  O-O {[%clk 0:03:00]} 7. O-O {[%clk 0:03:00]}  Bg4 {[%clk 0:03:00]} 8. f3 {[%clk 0:03:00]}  Bh5 {[%clk 0:03:00]} 9. Nf4 {[%clk 0:03:00]}  Bg6 {[%clk 0:03:00]} 10. Nxg6 {[%clk 0:03:00]}  hxg6 {[%clk 0:03:01]} 11. Ne2 {[%clk 0:03:00]}  Bd6 {[%clk 0:02:57]} 12. Bg5 {[%clk 0:02:56]}  c6 {[%clk 0:02:56]} 13. Qe1 {[%clk 0:02:42]}  Nbd7 {[%clk 0:02:54]} 14. Qh4 {[%clk 0:02:41]}  Re8 {[%clk 0:02:48]} 15. Nf4 {[%clk 0:02:34]}  Nf8 {[%clk 0:02:34]} 16. c3 {[%clk 0:02:31]}  N8h7 {[%clk 0:02:32]} 17. Nh3 {[%clk 0:02:23]}  Qc7 {[%clk 0:02:18]} 18. g3 {[%clk 0:02:19]}  Nxg5 {[%clk 0:02:09]} 19. Nxg5 {[%clk 0:02:18]}  Re3 {[%clk 0:02:09]} 20. Rad1 {[%clk 0:02:16]}  Rae8 {[%clk 0:02:08]} 21. Rf2 {[%clk 0:02:02]}  Re1+ {[%clk 0:02:06]} 22. Rf1 {[%clk 0:01:58]}  Rxf1+ {[%clk 0:02:05]} 23. Rxf1 {[%clk 0:01:51]}  Re3 {[%clk 0:02:05]} 24. Bb1 {[%clk 0:01:49]}  Qe7 {[%clk 0:02:03]} 25. Qh3 {[%clk 0:01:13]}  Re2 {[%clk 0:01:46]} 26. Qc8+ {[%clk 0:01:11]}  Ne8 {[%clk 0:01:45]} 27. Kh1 {[%clk 0:00:35]}  Rxb2 {[%clk 0:01:22]} 28. f4 {[%clk 0:00:29]}  Qe2 {[%clk 0:01:14]} 29. Qh3 {[%clk 0:00:22]}  Nf6 {[%clk 0:01:05]} 30. Kg1 {[%clk 0:00:10]}  Qe3+ {[%clk 0:01:01]} 31. Kh1 {[%clk 0:00:09]}  Qe2 {[%clk 0:00:54]} 32. Kg1 {[%clk 0:00:09]}  c5 {[%clk 0:00:55]} 33. Kh1 {[%clk 0:00:07]}  cxd4 {[%clk 0:00:48]} 34. cxd4 {[%clk 0:00:08]}  Bf8 {[%clk 0:00:38]} 35. g4 {[%clk 0:00:05]}  Qxg4 {[%clk 0:00:33]} 36. Qxg4 {[%clk 0:00:05]}  Nxg4 {[%clk 0:00:34]} 37. Rc1 {[%clk 0:00:04]}  Rxh2+ {[%clk 0:00:29]} 38. Kg1 {[%clk 0:00:04]}  Rd2 {[%clk 0:00:29]} 0-1


[Site "https://www.chess.com"]

[Event "Titled Tuesday Blitz March 07 Late 2023"]
[White "Harriott, Tyrell"]
[Black "Ardila, Oscar Humberto"]
[WhiteFideId "2086484"]
[BlackFideId "4404742"]
[WhiteElo "2107"]
[BlackElo "1911"]
[Result "1-0"]
[Round "03"]
[TimeControl "180+2"]
[Date "2023.03.07"]
[WhiteClock "0:01:31"]
[BlackClock "0:00:09"]

1. d4 {[%clk 0:03:00]}  Nf6 {[%clk 0:02:59]} 2. e3 {[%clk 0:03:00]}  g6 {[%clk 0:02:59]} 3. Bd3 {[%clk 0:03:00]}  Bg7 {[%clk 0:02:59]} 4. f4 {[%clk 0:02:59]}  O-O {[%clk 0:02:59]} 5. f5 {[%clk 0:02:57]}  d6 {[%clk 0:02:58]} 6. fxg6 {[%clk 0:02:57]}  hxg6 {[%clk 0:02:58]} 7. Nf3 {[%clk 0:02:58]}  c5 {[%clk 0:02:56]} 8. O-O {[%clk 0:02:58]}  Nc6 {[%clk 0:02:56]} 9. Qe1 {[%clk 0:02:57]}  Bg4 {[%clk 0:02:54]} 10. Ng5 {[%clk 0:02:57]}  cxd4 {[%clk 0:02:50]} 11. Qh4 {[%clk 0:02:56]}  Bh5 {[%clk 0:02:25]} 12. exd4 {[%clk 0:02:56]}  Qb6 {[%clk 0:01:57]} 13. c3 {[%clk 0:02:55]}  e5 {[%clk 0:01:57]} 14. Na3 {[%clk 0:02:42]}  exd4 {[%clk 0:01:55]} 15. Nc4 {[%clk 0:02:42]}  Qc5 {[%clk 0:01:43]} 16. b4 {[%clk 0:02:41]}  Qd5 {[%clk 0:01:35]} 17. b5 {[%clk 0:02:15]}  Ne5 {[%clk 0:01:30]} 18. Nxe5 {[%clk 0:02:12]}  dxe5 {[%clk 0:01:27]} 19. c4 {[%clk 0:02:11]}  Qd7 {[%clk 0:01:24]} 20. h3 {[%clk 0:02:09]}  e4 {[%clk 0:01:17]} 21. Be2 {[%clk 0:01:58]}  d3 {[%clk 0:01:10]} 22. Bxh5 {[%clk 0:01:58]}  Nxh5 {[%clk 0:01:10]} 23. g4 {[%clk 0:01:53]}  Qd4+ {[%clk 0:00:38]} 24. Kg2 {[%clk 0:01:48]}  Qxa1 {[%clk 0:00:37]} 25. gxh5 {[%clk 0:01:47]}  f6 {[%clk 0:00:24]} 26. hxg6 {[%clk 0:01:44]}  Qxa2+ {[%clk 0:00:17]} 27. Kh1 {[%clk 0:01:36]}  Rfe8 {[%clk 0:00:08]} 28. Qh7+ {[%clk 0:01:33]}  Kf8 {[%clk 0:00:09]} 29. Rxf6+ {[%clk 0:01:32]}  Bxf6 {[%clk 0:00:09]} 30. Qf7# {[%clk 0:01:31]} 1-0


[Site "https://www.chess.com"]

[Event "Titled Tuesday Blitz March 07 Late 2023"]
[White "Lorenzo De La Riva, Lazaro"]
[Black "Rian, Kapriaga"]
[WhiteFideId "2268809"]
[BlackFideId "7103263"]
[WhiteElo "2294"]
[BlackElo "2359"]
[Result "0-1"]
[Round "03"]
[TimeControl "180+2"]
[Date "2023.03.07"]
[WhiteClock "0:00:02"]
[BlackClock "0:01:02"]

1. e4 {[%clk 0:03:00]}  c6 {[%clk 0:02:59]} 2. d4 {[%clk 0:03:00]}  d5 {[%clk 0:02:59]} 3. Nc3 {[%clk 0:03:01]}  dxe4 {[%clk 0:02:59]} 4. Bc4 {[%clk 0:03:02]}  Bf5 {[%clk 0:02:54]} 5. f3 {[%clk 0:03:01]}  e3 {[%clk 0:02:49]} 6. Bxe3 {[%clk 0:03:00]}  e6 {[%clk 0:02:48]} 7. Nge2 {[%clk 0:03:00]}  Nf6 {[%clk 0:02:47]} 8. Qd2 {[%clk 0:02:57]}  Nbd7 {[%clk 0:02:44]} 9. O-O-O {[%clk 0:02:56]}  Be7 {[%clk 0:02:41]} 10. g4 {[%clk 0:02:55]}  Bg6 {[%clk 0:02:41]} 11. h4 {[%clk 0:02:55]}  h5 {[%clk 0:02:41]} 12. Nf4 {[%clk 0:02:47]}  Nf8 {[%clk 0:02:29]} 13. Nxg6 {[%clk 0:02:30]}  Nxg6 {[%clk 0:02:29]} 14. Qd3 {[%clk 0:02:04]}  Qd7 {[%clk 0:02:23]} 15. Ne4 {[%clk 0:01:52]}  O-O-O {[%clk 0:02:13]} 16. Bg5 {[%clk 0:01:30]}  Nxe4 {[%clk 0:02:09]} 17. Qxe4 {[%clk 0:01:24]}  hxg4 {[%clk 0:02:02]} 18. Bxe7 {[%clk 0:01:22]}  Qxe7 {[%clk 0:02:00]} 19. h5 {[%clk 0:01:21]}  Qg5+ {[%clk 0:01:55]} 20. Kb1 {[%clk 0:01:21]}  Rxh5 {[%clk 0:01:53]} 21. Rxh5 {[%clk 0:01:19]}  Qxh5 {[%clk 0:01:53]} 22. fxg4 {[%clk 0:01:20]}  Qg5 {[%clk 0:01:51]} 23. Rf1 {[%clk 0:01:15]}  Rd7 {[%clk 0:01:50]} 24. a4 {[%clk 0:01:10]}  a6 {[%clk 0:01:41]} 25. a5 {[%clk 0:01:10]}  Qxa5 {[%clk 0:01:37]} 26. Bxe6 {[%clk 0:01:08]}  fxe6 {[%clk 0:01:35]} 27. Qxg6 {[%clk 0:01:08]}  Qd5 {[%clk 0:01:34]} 28. c3 {[%clk 0:01:00]}  e5 {[%clk 0:01:29]} 29. Rf8+ {[%clk 0:00:55]}  Kc7 {[%clk 0:01:27]} 30. Qe8 {[%clk 0:00:30]}  exd4 {[%clk 0:01:22]} 31. Qc8+ {[%clk 0:00:30]}  Kb6 {[%clk 0:01:21]} 32. Rf5 {[%clk 0:00:29]}  Qe4+ {[%clk 0:01:18]} 33. Ka2 {[%clk 0:00:29]}  Qe6+ {[%clk 0:01:15]} 34. Kb1 {[%clk 0:00:28]}  dxc3 {[%clk 0:01:12]} 35. bxc3 {[%clk 0:00:25]}  Rd1+ {[%clk 0:01:11]} 36. Kc2 {[%clk 0:00:01]}  Qxc8 {[%clk 0:01:09]} 37. Kxd1 {[%clk 0:00:02]}  g6 {[%clk 0:01:08]} 38. Rf1 {[%clk 0:00:03]}  Qxg4+ {[%clk 0:01:07]} 39. Kc1 {[%clk 0:00:03]}  Qe2 {[%clk 0:01:06]} 40. Rf7 {[%clk 0:00:02]}  a5 {[%clk 0:01:05]} 41. c4 {[%clk 0:00:02]}  a4 {[%clk 0:01:05]} 42. c5+ {[%clk 0:00:03]}  Ka6 {[%clk 0:01:04]} 43. Kb1 {[%clk 0:00:04]}  a3 {[%clk 0:01:03]} 44. Rf2 {[%clk 0:00:01]}  Qxf2 {[%clk 0:01:02]} 45. Kc1 {[%clk 0:00:02]}  Qe2 {[%clk 0:01:02]} 46. Kb1 {[%clk 0:00:02]}  Qb2# {[%clk 0:01:02]} 0-1


[Site "https://www.chess.com"]

[Event "Titled Tuesday Blitz March 07 Late 2023"]
[White "Benaddi, Mouhcine"]
[Black "Michalski, Olaf"]
[WhiteFideId "9001050"]
[BlackFideId "1106740"]
[WhiteElo "2036"]
[BlackElo "2173"]
[Result "1-0"]
[Round "03"]
[TimeControl "180+2"]
[Date "2023.03.07"]
[WhiteClock "0:00:07"]
[BlackClock "0:00:02"]

1. Nf3 {[%clk 0:03:00]}  d6 {[%clk 0:02:58]} 2. h3 {[%clk 0:02:57]}  e5 {[%clk 0:02:58]} 3. c4 {[%clk 0:02:55]}  f5 {[%clk 0:02:53]} 4. d3 {[%clk 0:02:54]}  Nf6 {[%clk 0:02:53]} 5. Nc3 {[%clk 0:02:54]}  Be7 {[%clk 0:02:53]} 6. g3 {[%clk 0:02:53]}  O-O {[%clk 0:02:53]} 7. Bg2 {[%clk 0:02:54]}  Qe8 {[%clk 0:02:52]} 8. Nd2 {[%clk 0:02:42]}  c6 {[%clk 0:02:36]} 9. Rb1 {[%clk 0:02:41]}  Be6 {[%clk 0:02:30]} 10. b4 {[%clk 0:02:41]}  d5 {[%clk 0:02:23]} 11. b5 {[%clk 0:02:35]}  d4 {[%clk 0:02:10]} 12. bxc6 {[%clk 0:02:26]}  Nxc6 {[%clk 0:01:57]} 13. Nb5 {[%clk 0:02:22]}  Rc8 {[%clk 0:01:52]} 14. a4 {[%clk 0:02:00]}  e4 {[%clk 0:01:33]} 15. O-O {[%clk 0:01:47]}  e3 {[%clk 0:00:55]} 16. Nf3 {[%clk 0:01:45]}  exf2+ {[%clk 0:00:49]} 17. Rxf2 {[%clk 0:01:45]}  Qd7 {[%clk 0:00:43]} 18. Ng5 {[%clk 0:01:41]}  Bc5 {[%clk 0:00:26]} 19. Nxe6 {[%clk 0:01:37]}  Qxe6 {[%clk 0:00:26]} 20. Na3 {[%clk 0:01:26]}  b6 {[%clk 0:00:23]} 21. Nc2 {[%clk 0:01:19]}  Kh8 {[%clk 0:00:21]} 22. Ne1 {[%clk 0:01:07]}  Nh5 {[%clk 0:00:21]} 23. Kh2 {[%clk 0:00:55]}  Qg6 {[%clk 0:00:20]} 24. Bf4 {[%clk 0:00:51]}  Nxf4 {[%clk 0:00:19]} 25. gxf4 {[%clk 0:00:51]}  Rce8 {[%clk 0:00:16]} 26. Nf3 {[%clk 0:00:49]}  Re3 {[%clk 0:00:14]} 27. Qd2 {[%clk 0:00:36]}  Qd6 {[%clk 0:00:14]} 28. Ne1 {[%clk 0:00:23]}  Rfe8 {[%clk 0:00:12]} 29. Bd5 {[%clk 0:00:21]}  Qh6 {[%clk 0:00:10]} 30. Bg2 {[%clk 0:00:19]}  a5 {[%clk 0:00:11]} 31. Nc2 {[%clk 0:00:16]}  R3e6 {[%clk 0:00:10]} 32. Rg1 {[%clk 0:00:14]}  Nb4 {[%clk 0:00:10]} 33. Nxb4 {[%clk 0:00:12]}  axb4 {[%clk 0:00:10]} 34. Bf1 {[%clk 0:00:12]}  Re3 {[%clk 0:00:10]} 35. Qa2 {[%clk 0:00:08]}  g6 {[%clk 0:00:08]} 36. a5 {[%clk 0:00:08]}  bxa5 {[%clk 0:00:07]} 37. Qxa5 {[%clk 0:00:08]}  Bd6 {[%clk 0:00:07]} 38. Qd5 {[%clk 0:00:08]}  Bxf4+ {[%clk 0:00:07]} 39. Kh1 {[%clk 0:00:08]}  Rxh3+ {[%clk 0:00:06]} 40. Kg2 {[%clk 0:00:08]}  Qh5 {[%clk 0:00:06]} 41. Rf3 {[%clk 0:00:08]}  Qg4+ {[%clk 0:00:06]} 42. Kf2 {[%clk 0:00:08]}  Be3+ {[%clk 0:00:05]} 43. Rxe3 {[%clk 0:00:08]}  dxe3+ {[%clk 0:00:05]} 44. Ke1 {[%clk 0:00:08]}  Qxg1 {[%clk 0:00:06]} 45. Qd4+ {[%clk 0:00:08]}  Kg8 {[%clk 0:00:04]} 46. Qd5+ {[%clk 0:00:08]}  Kf8 {[%clk 0:00:03]} 47. Qd6+ {[%clk 0:00:07]}  Kf7 {[%clk 0:00:03]} 48. Qd5+ {[%clk 0:00:06]}  Kg7 {[%clk 0:00:03]} 49. Qd4+ {[%clk 0:00:05]}  Kh6 {[%clk 0:00:03]} 50. Qf4+ {[%clk 0:00:05]}  Qg5 {[%clk 0:00:03]} 51. Qc7 {[%clk 0:00:05]}  Rh1 {[%clk 0:00:02]} 52. Kd1 {[%clk 0:00:05]}  Rxf1+ {[%clk 0:00:01]} 53. Kc2 {[%clk 0:00:06]}  Qf4 {[%clk 0:00:02]} 54. Kb3 {[%clk 0:00:07]} 1-0


[Site "https://www.chess.com"]

[Event "Titled Tuesday Blitz March 07 Late 2023"]
[White "Needleman, Gaston"]
[Black "Ramirez, Maria Eugenia"]
[WhiteFideId "113735"]
[BlackFideId "3301680"]
[WhiteElo "2355"]
[BlackElo "1842"]
[Result "1-0"]
[Round "03"]
[TimeControl "180+2"]
[Date "2023.03.07"]
[WhiteClock "0:00:41"]
[BlackClock "0:01:16"]

1. d4 {[%clk 0:03:00]}  Nf6 {[%clk 0:02:59]} 2. Nf3 {[%clk 0:02:58]}  e6 {[%clk 0:02:59]} 3. c4 {[%clk 0:02:56]}  c5 {[%clk 0:02:59]} 4. d5 {[%clk 0:02:54]}  exd5 {[%clk 0:02:59]} 5. cxd5 {[%clk 0:02:55]}  d6 {[%clk 0:02:59]} 6. Nc3 {[%clk 0:02:53]}  g6 {[%clk 0:03:00]} 7. e4 {[%clk 0:02:53]}  Bg7 {[%clk 0:03:00]} 8. Bb5+ {[%clk 0:02:53]}  Nfd7 {[%clk 0:02:58]} 9. O-O {[%clk 0:02:51]}  O-O {[%clk 0:02:58]} 10. Bg5 {[%clk 0:02:47]}  f6 {[%clk 0:02:55]} 11. Bh4 {[%clk 0:02:45]}  a6 {[%clk 0:02:53]} 12. Bd3 {[%clk 0:02:37]}  Ne5 {[%clk 0:02:52]} 13. Nxe5 {[%clk 0:02:35]}  dxe5 {[%clk 0:02:52]} 14. a4 {[%clk 0:02:34]}  Qd6 {[%clk 0:02:46]} 15. Bg3 {[%clk 0:02:21]}  f5 {[%clk 0:02:41]} 16. f4 {[%clk 0:02:19]}  c4 {[%clk 0:02:32]} 17. Bc2 {[%clk 0:02:11]}  Qc5+ {[%clk 0:02:25]} 18. Kh1 {[%clk 0:02:10]}  exf4 {[%clk 0:02:22]} 19. Bxf4 {[%clk 0:02:07]}  fxe4 {[%clk 0:02:02]} 20. Nxe4 {[%clk 0:02:03]}  Qb4 {[%clk 0:02:02]} 21. Bd6 {[%clk 0:01:56]}  Qxb2 {[%clk 0:01:57]} 22. Bxf8 {[%clk 0:01:35]}  Bxf8 {[%clk 0:01:57]} 23. Nf6+ {[%clk 0:01:26]}  Kh8 {[%clk 0:01:52]} 24. Nxh7 {[%clk 0:01:08]}  Bg7 {[%clk 0:01:39]} 25. Rb1 {[%clk 0:00:54]}  Qe5 {[%clk 0:01:39]} 26. Bxg6 {[%clk 0:00:48]}  Nd7 {[%clk 0:01:30]} 27. Re1 {[%clk 0:00:45]}  Qd6 {[%clk 0:01:20]} 28. Re8+ {[%clk 0:00:45]}  Nf8 {[%clk 0:01:19]} 29. Nxf8 {[%clk 0:00:43]}  Bxf8 {[%clk 0:01:18]} 30. Qh5+ {[%clk 0:00:43]}  Kg7 {[%clk 0:01:18]} 31. Qh7+ {[%clk 0:00:42]}  Kf6 {[%clk 0:01:18]} 32. Rf1+ {[%clk 0:00:41]}  Kg5 {[%clk 0:01:16]} 33. Qh5# {[%clk 0:00:41]} 1-0


[Site "https://www.chess.com"]

[Event "Titled Tuesday Blitz March 07 Late 2023"]
[White "Marcolino, Daniel Mattos"]
[Black "Kujawski, Adam"]
[WhiteFideId "2106841"]
[BlackFideId "1100920"]
[WhiteElo "2114"]
[BlackElo "2054"]
[Result "0-1"]
[Round "03"]
[TimeControl "180+2"]
[Date "2023.03.07"]
[WhiteClock "0:02:15"]
[BlackClock "0:02:21"]

1. d4 {[%clk 0:03:00]}  Nf6 {[%clk 0:02:57]} 2. Nf3 {[%clk 0:03:01]}  c5 {[%clk 0:02:56]} 3. d5 {[%clk 0:03:01]}  e6 {[%clk 0:02:56]} 4. Nc3 {[%clk 0:03:01]}  exd5 {[%clk 0:02:56]} 5. Nxd5 {[%clk 0:03:01]}  Nxd5 {[%clk 0:02:57]} 6. Qxd5 {[%clk 0:03:01]}  Be7 {[%clk 0:02:58]} 7. e4 {[%clk 0:02:58]}  Nc6 {[%clk 0:02:57]} 8. c3 {[%clk 0:02:56]}  d6 {[%clk 0:02:56]} 9. Bc4 {[%clk 0:02:55]}  Be6 {[%clk 0:02:50]} 10. Qd3 {[%clk 0:02:55]}  O-O {[%clk 0:02:48]} 11. Bxe6 {[%clk 0:02:53]}  fxe6 {[%clk 0:02:48]} 12. O-O {[%clk 0:02:53]}  Qe8 {[%clk 0:02:44]} 13. Rd1 {[%clk 0:02:49]}  Qg6 {[%clk 0:02:37]} 14. Qe2 {[%clk 0:02:30]}  Rf7 {[%clk 0:02:26]} 15. b3 {[%clk 0:02:15]}  Raf8 {[%clk 0:02:25]} 16. Bb2 {[%clk 0:02:15]}  Rxf3 {[%clk 0:02:21]} 0-1


[Site "https://www.chess.com"]

[Event "Titled Tuesday Blitz March 07 Late 2023"]
[White "Vasques, Antonio Pedro Freixial"]
[Black "Quispe Santacruz, Javier"]
[WhiteFideId "1908332"]
[BlackFideId "3800920"]
[WhiteElo "2212"]
[BlackElo "1875"]
[Result "0-1"]
[Round "03"]
[TimeControl "180+2"]
[Date "2023.03.07"]
[WhiteClock "0:01:06"]
[BlackClock "0:00:41"]

1. e4 {[%clk 0:03:00]}  c5 {[%clk 0:02:57]} 2. Nf3 {[%clk 0:02:59]}  d6 {[%clk 0:02:57]} 3. Bb5+ {[%clk 0:02:58]}  Nc6 {[%clk 0:02:56]} 4. Bxc6+ {[%clk 0:02:54]}  bxc6 {[%clk 0:02:55]} 5. O-O {[%clk 0:02:55]}  e5 {[%clk 0:02:55]} 6. c3 {[%clk 0:02:51]}  Nf6 {[%clk 0:02:53]} 7. d4 {[%clk 0:02:51]}  cxd4 {[%clk 0:02:54]} 8. cxd4 {[%clk 0:02:50]}  Qc7 {[%clk 0:02:52]} 9. Nc3 {[%clk 0:02:47]}  Be7 {[%clk 0:02:51]} 10. Bg5 {[%clk 0:02:47]}  O-O {[%clk 0:02:50]} 11. Rc1 {[%clk 0:02:47]}  Qa5 {[%clk 0:02:43]} 12. a3 {[%clk 0:02:40]}  Bg4 {[%clk 0:02:12]} 13. dxe5 {[%clk 0:02:22]}  dxe5 {[%clk 0:02:10]} 14. Qe2 {[%clk 0:02:20]}  h6 {[%clk 0:02:05]} 15. Bh4 {[%clk 0:02:15]}  Bxf3 {[%clk 0:01:55]} 16. Qxf3 {[%clk 0:02:15]}  Rfd8 {[%clk 0:01:53]} 17. Rfd1 {[%clk 0:02:04]}  Rxd1+ {[%clk 0:01:48]} 18. Rxd1 {[%clk 0:02:05]}  Rd8 {[%clk 0:01:46]} 19. h3 {[%clk 0:01:55]}  Qb6 {[%clk 0:01:37]} 20. b4 {[%clk 0:01:52]}  a5 {[%clk 0:01:37]} 21. Rxd8+ {[%clk 0:01:45]}  Qxd8 {[%clk 0:01:36]} 22. Qd1 {[%clk 0:01:41]}  Qxd1+ {[%clk 0:01:34]} 23. Nxd1 {[%clk 0:01:42]}  axb4 {[%clk 0:01:33]} 24. axb4 {[%clk 0:01:41]}  Bxb4 {[%clk 0:01:32]} 25. Bxf6 {[%clk 0:01:42]}  gxf6 {[%clk 0:01:32]} 26. Ne3 {[%clk 0:01:42]}  Kh7 {[%clk 0:01:28]} 27. Kf1 {[%clk 0:01:36]}  Kg6 {[%clk 0:01:22]} 28. Ke2 {[%clk 0:01:36]}  Kg5 {[%clk 0:01:19]} 29. g3 {[%clk 0:01:36]}  h5 {[%clk 0:01:18]} 30. Nf5 {[%clk 0:01:34]}  Bc5 {[%clk 0:01:14]} 31. f3 {[%clk 0:01:29]}  Kg6 {[%clk 0:01:07]} 32. Kd3 {[%clk 0:01:27]}  Bf2 {[%clk 0:01:05]} 33. Kc4 {[%clk 0:01:24]}  Kg5 {[%clk 0:01:01]} 34. h4+ {[%clk 0:01:22]}  Kg6 {[%clk 0:00:59]} 35. Kb4 {[%clk 0:01:21]}  Bb6 {[%clk 0:00:57]} 36. Ne7+ {[%clk 0:01:18]}  Kh6 {[%clk 0:00:57]} 37. Nxc6 {[%clk 0:01:16]}  Bf2 {[%clk 0:00:57]} 38. f4 {[%clk 0:01:16]}  Bxg3 {[%clk 0:00:55]} 39. fxe5 {[%clk 0:01:15]}  fxe5 {[%clk 0:00:54]} 40. Ne7 {[%clk 0:01:16]}  Bxh4 {[%clk 0:00:53]} 41. Nf5+ {[%clk 0:01:15]}  Kg5 {[%clk 0:00:53]} 42. Kc5 {[%clk 0:01:16]}  Be1 {[%clk 0:00:47]} 43. Kd5 {[%clk 0:01:17]}  Bc3 {[%clk 0:00:47]} 44. Ng3 {[%clk 0:01:16]}  h4 {[%clk 0:00:47]} 45. Ne2 {[%clk 0:01:16]}  Bb2 {[%clk 0:00:46]} 46. Kc4 {[%clk 0:01:15]}  h3 {[%clk 0:00:46]} 47. Kb3 {[%clk 0:01:11]}  Bd4 {[%clk 0:00:45]} 48. Kc4 {[%clk 0:01:09]}  Be3 {[%clk 0:00:43]} 49. Kd3 {[%clk 0:01:09]}  Bf4 {[%clk 0:00:42]} 50. Ng1 {[%clk 0:01:06]}  h2 {[%clk 0:00:41]} 0-1


[Site "https://www.chess.com"]

[Event "Titled Tuesday Blitz March 07 Late 2023"]
[White "Sarkar, Justin"]
[Black "Levine, David"]
[WhiteFideId "2010011"]
[BlackFideId "2011611"]
[WhiteElo "2189"]
[BlackElo "2067"]
[Result "1/2-1/2"]
[Round "03"]
[TimeControl "180+2"]
[Date "2023.03.07"]
[WhiteClock "0:00:05"]
[BlackClock "0:00:13"]

1. d4 {[%clk 0:02:36]}  d5 {[%clk 0:02:59]} 2. c4 {[%clk 0:02:36]}  dxc4 {[%clk 0:02:59]} 3. Nf3 {[%clk 0:02:31]}  Nf6 {[%clk 0:02:58]} 4. e3 {[%clk 0:02:30]}  e6 {[%clk 0:02:57]} 5. Bxc4 {[%clk 0:02:29]}  c5 {[%clk 0:02:57]} 6. O-O {[%clk 0:02:25]}  Nc6 {[%clk 0:02:57]} 7. Qe2 {[%clk 0:02:18]}  cxd4 {[%clk 0:02:55]} 8. Rd1 {[%clk 0:02:17]}  Be7 {[%clk 0:02:54]} 9. exd4 {[%clk 0:02:11]}  O-O {[%clk 0:02:50]} 10. Nc3 {[%clk 0:02:10]}  Nb4 {[%clk 0:02:26]} 11. Ne5 {[%clk 0:02:05]}  Nbd5 {[%clk 0:02:18]} 12. Bg5 {[%clk 0:01:55]}  Nxc3 {[%clk 0:02:09]} 13. bxc3 {[%clk 0:01:54]}  Nd5 {[%clk 0:02:08]} 14. Bd2 {[%clk 0:01:44]}  Qc7 {[%clk 0:01:52]} 15. Rac1 {[%clk 0:01:21]}  b6 {[%clk 0:01:51]} 16. Bd3 {[%clk 0:01:14]}  Bb7 {[%clk 0:01:49]} 17. c4 {[%clk 0:01:07]}  Nf6 {[%clk 0:01:48]} 18. Bf4 {[%clk 0:01:05]}  Bd6 {[%clk 0:01:23]} 19. c5 {[%clk 0:00:58]}  bxc5 {[%clk 0:01:22]} 20. dxc5 {[%clk 0:00:57]}  Bxe5 {[%clk 0:01:13]} 21. Bxe5 {[%clk 0:00:55]}  Qc6 {[%clk 0:01:13]} 22. f3 {[%clk 0:00:55]}  Rfd8 {[%clk 0:00:52]} 23. Bxf6 {[%clk 0:00:43]}  gxf6 {[%clk 0:00:51]} 24. Be4 {[%clk 0:00:39]}  Qc7 {[%clk 0:00:50]} 25. c6 {[%clk 0:00:27]}  Rxd1+ {[%clk 0:00:31]} 26. Qxd1 {[%clk 0:00:23]}  Ba6 {[%clk 0:00:19]} 27. Qd2 {[%clk 0:00:18]}  Rd8 {[%clk 0:00:16]} 28. Qh6 {[%clk 0:00:13]}  f5 {[%clk 0:00:15]} 29. Qg5+ {[%clk 0:00:11]}  Kf8 {[%clk 0:00:14]} 30. Qh6+ {[%clk 0:00:05]}  Kg8 {[%clk 0:00:13]} 31. Qg5+ {[%clk 0:00:04]}  Kf8 {[%clk 0:00:13]} 32. Qh6+ {[%clk 0:00:05]}  Kg8 {[%clk 0:00:13]} 1/2-1/2


[Site "https://www.chess.com"]

[Event "Titled Tuesday Blitz March 07 Late 2023"]
[White "Manu_ChessExcelsior"]
[Black "Uzcategui Rodriguez, Alejandro"]
[BlackFideId "3903400"]
[WhiteElo "1980"]
[BlackElo "2249"]
[Result "0-1"]
[Round "03"]
[TimeControl "180+2"]
[Date "2023.03.07"]
[WhiteClock "0:01:13"]
[BlackClock "0:01:38"]

1. e4 {[%clk 0:03:00]}  e6 {[%clk 0:02:43]} 2. d4 {[%clk 0:02:57]}  d5 {[%clk 0:02:43]} 3. e5 {[%clk 0:02:58]}  c5 {[%clk 0:02:43]} 4. c3 {[%clk 0:02:58]}  Nc6 {[%clk 0:02:44]} 5. Nf3 {[%clk 0:02:57]}  cxd4 {[%clk 0:02:43]} 6. Bd3 {[%clk 0:02:47]}  dxc3 {[%clk 0:02:39]} 7. Nxc3 {[%clk 0:02:45]}  f6 {[%clk 0:02:39]} 8. exf6 {[%clk 0:02:00]}  Nxf6 {[%clk 0:02:40]} 9. O-O {[%clk 0:02:00]}  Bd6 {[%clk 0:02:36]} 10. Re1 {[%clk 0:01:59]}  O-O {[%clk 0:02:35]} 11. Bg5 {[%clk 0:01:56]}  h6 {[%clk 0:02:21]} 12. Bh4 {[%clk 0:01:54]}  Qe8 {[%clk 0:02:13]} 13. Bb5 {[%clk 0:01:51]}  Qh5 {[%clk 0:02:10]} 14. Bg3 {[%clk 0:01:45]}  Bxg3 {[%clk 0:02:06]} 15. hxg3 {[%clk 0:01:46]}  Ng4 {[%clk 0:01:52]} 16. Ne2 {[%clk 0:01:13]}  Rxf3 {[%clk 0:01:38]} 0-1


[Site "https://www.chess.com"]